[Event "Titled Tuesday Blitz May 30 Late 2023"]
[White "Magallanes, Rey Jomar"]
[Black "Chylewski, Patryk"]
[WhiteFideId "5205948"]
[BlackFideId "1186191"]
[WhiteElo "2261"]
[BlackElo "2163"]
[Result "0-1"]
[Round "05"]
[TimeControl "180+2"]
[Date "2023.05.31"]
[WhiteClock "0:00:15"]
[BlackClock "0:00:10"]

1. e4 {[%clk 0:03:00]}  c6 {[%clk 0:02:58]} 2. d4 {[%clk 0:02:59]}  d5 {[%clk 0:02:58]} 3. e5 {[%clk 0:02:59]}  c5 {[%clk 0:02:58]} 4. Nf3 {[%clk 0:02:57]}  Bg4 {[%clk 0:02:58]} 5. dxc5 {[%clk 0:02:57]}  e6 {[%clk 0:02:57]} 6. c3 {[%clk 0:02:57]}  Bxc5 {[%clk 0:02:57]} 7. Qa4+ {[%clk 0:02:57]}  Nd7 {[%clk 0:02:24]} 8. Qxg4 {[%clk 0:02:57]}  Ne7 {[%clk 0:02:15]} 9. Bd3 {[%clk 0:02:52]}  Ng6 {[%clk 0:02:13]} 10. b4 {[%clk 0:02:46]}  Be7 {[%clk 0:02:09]} 11. Bb5 {[%clk 0:02:36]}  a6 {[%clk 0:02:07]} 12. Bxd7+ {[%clk 0:02:34]}  Qxd7 {[%clk 0:02:08]} 13. Be3 {[%clk 0:02:32]}  a5 {[%clk 0:02:02]} 14. Nbd2 {[%clk 0:02:28]}  Qb5 {[%clk 0:01:55]} 15. Rb1 {[%clk 0:02:25]}  axb4 {[%clk 0:01:48]} 16. cxb4 {[%clk 0:02:26]}  Rxa2 {[%clk 0:01:47]} 17. Qd4 {[%clk 0:02:20]}  O-O {[%clk 0:01:43]} 18. h4 {[%clk 0:02:10]}  f6 {[%clk 0:01:30]} 19. h5 {[%clk 0:02:08]}  Nxe5 {[%clk 0:01:24]} 20. Nxe5 {[%clk 0:02:06]}  fxe5 {[%clk 0:01:25]} 21. Qxe5 {[%clk 0:02:05]}  Bxb4 {[%clk 0:01:24]} 22. Rd1 {[%clk 0:01:44]}  Qd3 {[%clk 0:00:37]} 23. h6 {[%clk 0:01:09]}  Rf6 {[%clk 0:00:15]} 24. hxg7 {[%clk 0:00:47]}  Kxg7 {[%clk 0:00:16]} 25. Rh4 {[%clk 0:00:23]}  Bxd2+ {[%clk 0:00:09]} 26. Rxd2 {[%clk 0:00:18]}  Qb1+ {[%clk 0:00:03]} 27. Ke2 {[%clk 0:00:17]}  Qb5+ {[%clk 0:00:03]} 28. Ke1 {[%clk 0:00:15]}  Qb1+ {[%clk 0:00:02]} 29. Rd1 {[%clk 0:00:14]}  Qc2 {[%clk 0:00:01]} 30. Rg4+ {[%clk 0:00:08]}  Kf7 {[%clk 0:00:01]} 31. Rd2 {[%clk 0:00:04]}  Qb1+ {[%clk 0:00:01]} 32. Ke2 {[%clk 0:00:05]}  Qb5+ {[%clk 0:00:01]} 33. Ke1 {[%clk 0:00:05]}  Qb1+ {[%clk 0:00:02]} 34. Rd1 {[%clk 0:00:06]}  Qc2 {[%clk 0:00:02]} 35. Bd2 {[%clk 0:00:05]}  Qd3 {[%clk 0:00:01]} 36. Rg7+ {[%clk 0:00:05]}  Kxg7 {[%clk 0:00:01]} 37. Qg5+ {[%clk 0:00:05]}  Kf7 {[%clk 0:00:01]} 38. Qe3 {[%clk 0:00:05]}  Qe4 {[%clk 0:00:01]} 39. Qxe4 {[%clk 0:00:05]}  dxe4 {[%clk 0:00:01]} 40. Bc3 {[%clk 0:00:05]}  Rf5 {[%clk 0:00:01]} 41. Rd2 {[%clk 0:00:06]}  Rxd2 {[%clk 0:00:01]} 42. Bxd2 {[%clk 0:00:07]}  Rd5 {[%clk 0:00:02]} 43. Ke2 {[%clk 0:00:07]}  b5 {[%clk 0:00:02]} 44. Be3 {[%clk 0:00:08]}  b4 {[%clk 0:00:02]} 45. Bd2 {[%clk 0:00:09]}  b3 {[%clk 0:00:03]} 46. Bc1 {[%clk 0:00:09]}  Rc5 {[%clk 0:00:03]} 47. Bb2 {[%clk 0:00:10]}  Rc2+ {[%clk 0:00:04]} 48. Ke3 {[%clk 0:00:10]}  Rxb2 {[%clk 0:00:05]} 49. Kxe4 {[%clk 0:00:11]}  Rxf2 {[%clk 0:00:05]} 50. Ke5 {[%clk 0:00:12]}  Rxg2 {[%clk 0:00:06]} 51. Kd6 {[%clk 0:00:12]}  b2 {[%clk 0:00:07]} 52. Kd7 {[%clk 0:00:12]}  b1=Q {[%clk 0:00:07]} 53. Kd8 {[%clk 0:00:13]}  Qd3+ {[%clk 0:00:08]} 54. Kc7 {[%clk 0:00:13]}  Rc2+ {[%clk 0:00:08]} 55. Kb7 {[%clk 0:00:14]}  Qb3+ {[%clk 0:00:09]} 56. Ka7 {[%clk 0:00:15]}  Ra2# {[%clk 0:00:10]} 0-1


[Site "https://www.chess.com"]

[Event "Titled Tuesday Blitz May 30 Late 2023"]
[White "Djordjevic, Dejan N"]
[Black "Minko, Dmitry"]
[WhiteFideId "913316"]
[BlackFideId "24188468"]
[WhiteElo "2261"]
[BlackElo "2147"]
[Result "0-1"]
[Round "05"]
[TimeControl "180+2"]
[Date "2023.05.31"]
[WhiteClock "0:00:01"]
[BlackClock "0:00:10"]

1. e4 {[%clk 0:02:59]}  e5 {[%clk 0:03:00]} 2. Nf3 {[%clk 0:02:59]}  Nc6 {[%clk 0:03:00]} 3. Bc4 {[%clk 0:02:58]}  Nf6 {[%clk 0:03:00]} 4. d3 {[%clk 0:02:58]}  h6 {[%clk 0:03:00]} 5. O-O {[%clk 0:02:58]}  g6 {[%clk 0:03:00]} 6. Nc3 {[%clk 0:02:50]}  Bg7 {[%clk 0:03:00]} 7. Ne2 {[%clk 0:02:50]}  O-O {[%clk 0:03:00]} 8. Ng3 {[%clk 0:02:50]}  d5 {[%clk 0:02:55]} 9. exd5 {[%clk 0:02:49]}  Nxd5 {[%clk 0:02:56]} 10. a3 {[%clk 0:02:49]}  Be6 {[%clk 0:02:38]} 11. Re1 {[%clk 0:02:47]}  Nf4 {[%clk 0:02:13]} 12. Bxf4 {[%clk 0:02:37]}  exf4 {[%clk 0:02:12]} 13. Bxe6 {[%clk 0:02:20]}  fxg3 {[%clk 0:02:12]} 14. Bc4 {[%clk 0:02:14]}  gxf2+ {[%clk 0:02:11]} 15. Kxf2 {[%clk 0:02:13]}  Bxb2 {[%clk 0:01:57]} 16. Rb1 {[%clk 0:02:12]}  Bxa3 {[%clk 0:01:57]} 17. Rxb7 {[%clk 0:02:11]}  Bc5+ {[%clk 0:01:57]} 18. Kf1 {[%clk 0:02:10]}  Bb6 {[%clk 0:01:55]} 19. c3 {[%clk 0:01:53]}  Na5 {[%clk 0:01:46]} 20. Ba6 {[%clk 0:01:42]}  Nxb7 {[%clk 0:01:42]} 21. Bxb7 {[%clk 0:01:42]}  Rb8 {[%clk 0:01:43]} 22. Ba6 {[%clk 0:01:39]}  Qf6 {[%clk 0:01:33]} 23. Qa1 {[%clk 0:01:03]}  Rfe8 {[%clk 0:01:30]} 24. d4 {[%clk 0:00:56]}  Rxe1+ {[%clk 0:01:27]} 25. Kxe1 {[%clk 0:00:55]}  Re8+ {[%clk 0:01:25]} 26. Kf1 {[%clk 0:00:54]}  g5 {[%clk 0:01:11]} 27. h3 {[%clk 0:00:53]}  Re3 {[%clk 0:01:09]} 28. Kf2 {[%clk 0:00:40]}  Re7 {[%clk 0:00:52]} 29. Bc4 {[%clk 0:00:30]}  Qf4 {[%clk 0:00:51]} 30. Kg1 {[%clk 0:00:20]}  c5 {[%clk 0:00:46]} 31. Kh1 {[%clk 0:00:17]}  cxd4 {[%clk 0:00:45]} 32. cxd4 {[%clk 0:00:16]}  Rd7 {[%clk 0:00:22]} 33. Qe1 {[%clk 0:00:03]}  Kg7 {[%clk 0:00:12]} 34. d5 {[%clk 0:00:01]}  Qxc4 {[%clk 0:00:10]} 35. Qe5+ {[%clk 0:00:01]}  f6 {[%clk 0:00:10]} 0-1


[Site "https://www.chess.com"]

[Event "Titled Tuesday Blitz May 30 Late 2023"]
[White "Pinheiro, Iung Alicio de O."]
[Black "micke12a"]
[WhiteFideId "2104350"]
[WhiteElo "2283"]
[BlackElo "2399"]
[Result "1-0"]
[Round "05"]
[TimeControl "180+2"]
[Date "2023.05.31"]
[WhiteClock "0:00:10"]
[BlackClock "0:00:04"]

1. e4 {[%clk 0:02:46]}  c5 {[%clk 0:03:00]} 2. Nf3 {[%clk 0:02:45]}  d6 {[%clk 0:03:00]} 3. Nc3 {[%clk 0:02:44]}  Nf6 {[%clk 0:03:00]} 4. d4 {[%clk 0:02:44]}  cxd4 {[%clk 0:03:00]} 5. Nxd4 {[%clk 0:02:45]}  g6 {[%clk 0:03:00]} 6. Be2 {[%clk 0:02:44]}  Bg7 {[%clk 0:03:00]} 7. O-O {[%clk 0:02:44]}  O-O {[%clk 0:03:01]} 8. Re1 {[%clk 0:02:44]}  Nc6 {[%clk 0:03:00]} 9. Nb3 {[%clk 0:02:45]}  a5 {[%clk 0:02:59]} 10. a4 {[%clk 0:02:45]}  Be6 {[%clk 0:02:59]} 11. Bf1 {[%clk 0:02:43]}  Rc8 {[%clk 0:02:58]} 12. Bg5 {[%clk 0:02:40]}  h6 {[%clk 0:02:55]} 13. Bh4 {[%clk 0:02:39]}  Qb6 {[%clk 0:02:56]} 14. Nd5 {[%clk 0:02:27]}  Bxd5 {[%clk 0:02:49]} 15. exd5 {[%clk 0:02:28]}  Ne5 {[%clk 0:02:44]} 16. Bb5 {[%clk 0:02:15]}  Rc7 {[%clk 0:02:39]} 17. c3 {[%clk 0:02:13]}  Rfc8 {[%clk 0:02:20]} 18. h3 {[%clk 0:02:02]}  g5 {[%clk 0:02:06]} 19. Bg3 {[%clk 0:02:00]}  Nfd7 {[%clk 0:02:06]} 20. Nd4 {[%clk 0:01:55]}  Nc5 {[%clk 0:01:27]} 21. Nf5 {[%clk 0:01:50]}  Ng6 {[%clk 0:01:27]} 22. Qh5 {[%clk 0:01:45]}  Kh7 {[%clk 0:01:24]} 23. Re2 {[%clk 0:01:18]}  Bf8 {[%clk 0:01:07]} 24. Rae1 {[%clk 0:01:14]}  Na6 {[%clk 0:01:00]} 25. h4 {[%clk 0:01:04]}  gxh4 {[%clk 0:00:57]} 26. Bxh4 {[%clk 0:01:03]}  e6 {[%clk 0:00:52]} 27. Rxe6 {[%clk 0:00:36]}  fxe6 {[%clk 0:00:46]} 28. Rxe6 {[%clk 0:00:37]}  Nf4 {[%clk 0:00:35]} 29. Rxh6+ {[%clk 0:00:36]}  Bxh6 {[%clk 0:00:35]} 30. Qxh6+ {[%clk 0:00:37]}  Kg8 {[%clk 0:00:36]} 31. Bf6 {[%clk 0:00:32]}  Nxd5 {[%clk 0:00:21]} 32. Qh8+ {[%clk 0:00:28]}  Kf7 {[%clk 0:00:20]} 33. Qg7+ {[%clk 0:00:28]}  Ke6 {[%clk 0:00:19]} 34. Qg6 {[%clk 0:00:14]}  Nxf6 {[%clk 0:00:17]} 35. Nd4+ {[%clk 0:00:15]}  Qxd4 {[%clk 0:00:06]} 36. cxd4 {[%clk 0:00:16]}  Nb4 {[%clk 0:00:05]} 37. g3 {[%clk 0:00:11]}  Rc1+ {[%clk 0:00:05]} 38. Kg2 {[%clk 0:00:12]}  Nd5 {[%clk 0:00:06]} 39. Bd3 {[%clk 0:00:11]}  R8c2 {[%clk 0:00:06]} 40. Bxc2 {[%clk 0:00:10]}  Re1 {[%clk 0:00:02]} 41. Bf5+ {[%clk 0:00:09]}  Ke7 {[%clk 0:00:02]} 42. Qg7+ {[%clk 0:00:10]}  Kd8 {[%clk 0:00:02]} 43. Qf7 {[%clk 0:00:09]}  Re2 {[%clk 0:00:02]} 44. Kf1 {[%clk 0:00:08]}  Rxb2 {[%clk 0:00:02]} 45. Be6 {[%clk 0:00:09]}  Rb1+ {[%clk 0:00:01]} 46. Kg2 {[%clk 0:00:09]}  Rb2 {[%clk 0:00:02]} 47. Bxd5 {[%clk 0:00:09]}  Nxd5 {[%clk 0:00:02]} 48. Qxd5 {[%clk 0:00:10]}  Rb4 {[%clk 0:00:03]} 49. Qxd6+ {[%clk 0:00:10]}  Kc8 {[%clk 0:00:04]} 50. d5 {[%clk 0:00:10]}  Rxa4 {[%clk 0:00:04]} 51. Qe7 {[%clk 0:00:09]}  Rd4 {[%clk 0:00:04]} 52. d6 {[%clk 0:00:10]}  a4 {[%clk 0:00:04]} 53. Qc7# {[%clk 0:00:10]} 1-0


[Site "https://www.chess.com"]

[Event "Titled Tuesday Blitz May 30 Late 2023"]
[White "Prydun, Andriy"]
[Black "Shuvalov, Evgenij"]
[WhiteFideId "14145898"]
[BlackFideId "4187237"]
[WhiteElo "2164"]
[BlackElo "2080"]
[Result "0-1"]
[Round "05"]
[TimeControl "180+2"]
[Date "2023.05.31"]
[WhiteClock "0:00:02"]
[BlackClock "0:00:12"]

1. e4 {[%clk 0:03:00]}  e6 {[%clk 0:02:58]} 2. d4 {[%clk 0:02:58]}  d5 {[%clk 0:02:58]} 3. exd5 {[%clk 0:02:59]}  exd5 {[%clk 0:02:58]} 4. Bd3 {[%clk 0:02:59]}  c5 {[%clk 0:02:57]} 5. dxc5 {[%clk 0:02:55]}  Bxc5 {[%clk 0:02:58]} 6. h3 {[%clk 0:02:26]}  Nf6 {[%clk 0:02:58]} 7. Nf3 {[%clk 0:02:25]}  O-O {[%clk 0:02:56]} 8. O-O {[%clk 0:02:24]}  Ne4 {[%clk 0:02:54]} 9. Nc3 {[%clk 0:02:19]}  f5 {[%clk 0:02:53]} 10. Nb5 {[%clk 0:01:58]}  Nc6 {[%clk 0:02:49]} 11. c3 {[%clk 0:01:45]}  Qf6 {[%clk 0:02:01]} 12. Bc2 {[%clk 0:01:31]}  Rd8 {[%clk 0:01:56]} 13. Nbd4 {[%clk 0:01:25]}  Be6 {[%clk 0:01:45]} 14. Be3 {[%clk 0:01:13]}  Be7 {[%clk 0:01:38]} 15. Nxe6 {[%clk 0:01:11]}  Qxe6 {[%clk 0:01:37]} 16. Bd4 {[%clk 0:01:12]}  Bf6 {[%clk 0:01:31]} 17. Re1 {[%clk 0:01:09]}  Rac8 {[%clk 0:01:28]} 18. Bb3 {[%clk 0:01:03]}  Na5 {[%clk 0:01:26]} 19. Qe2 {[%clk 0:00:53]}  Nc4 {[%clk 0:01:19]} 20. Rad1 {[%clk 0:00:52]}  b6 {[%clk 0:01:14]} 21. Bxf6 {[%clk 0:00:51]}  Qxf6 {[%clk 0:01:13]} 22. Rxd5 {[%clk 0:00:47]}  Rxd5 {[%clk 0:00:48]} 23. Bxc4 {[%clk 0:00:47]}  Qf7 {[%clk 0:00:40]} 24. Ne5 {[%clk 0:00:38]}  Qe6 {[%clk 0:00:37]} 25. Nf3 {[%clk 0:00:18]}  Kh8 {[%clk 0:00:31]} 26. Ng5 {[%clk 0:00:13]}  Qd7 {[%clk 0:00:20]} 27. Nxe4 {[%clk 0:00:10]}  Re5 {[%clk 0:00:17]} 28. Rd1 {[%clk 0:00:04]}  Qe7 {[%clk 0:00:15]} 29. Bd3 {[%clk 0:00:02]}  fxe4 {[%clk 0:00:14]} 30. Bc2 {[%clk 0:00:03]}  e3 {[%clk 0:00:14]} 31. fxe3 {[%clk 0:00:03]}  Rxe3 {[%clk 0:00:13]} 32. Qf1 {[%clk 0:00:02]}  Rf8 {[%clk 0:00:12]} 0-1


[Site "https://www.chess.com"]

[Event "Titled Tuesday Blitz May 30 Late 2023"]
[White "Martic, Ivan"]
[Black "gao6969"]
[WhiteFideId "929301"]
[WhiteElo "2360"]
[BlackElo "2379"]
[Result "1-0"]
[Round "05"]
[TimeControl "180+2"]
[Date "2023.05.31"]
[WhiteClock "0:00:43"]
[BlackClock "0:00:10"]

1. c4 {[%clk 0:02:56]}  Nf6 {[%clk 0:02:58]} 2. Nc3 {[%clk 0:02:56]}  e6 {[%clk 0:02:58]} 3. d4 {[%clk 0:02:53]}  d5 {[%clk 0:02:58]} 4. Bg5 {[%clk 0:02:51]}  Bb4 {[%clk 0:02:51]} 5. Qa4+ {[%clk 0:02:44]}  Nc6 {[%clk 0:02:50]} 6. e3 {[%clk 0:02:39]}  O-O {[%clk 0:02:49]} 7. Nf3 {[%clk 0:02:37]}  h6 {[%clk 0:02:49]} 8. Bxf6 {[%clk 0:02:36]}  Qxf6 {[%clk 0:02:47]} 9. cxd5 {[%clk 0:02:35]}  exd5 {[%clk 0:02:48]} 10. Be2 {[%clk 0:02:34]}  Bf5 {[%clk 0:02:43]} 11. a3 {[%clk 0:02:29]}  Bxc3+ {[%clk 0:02:41]} 12. bxc3 {[%clk 0:02:30]}  Rfe8 {[%clk 0:02:34]} 13. O-O {[%clk 0:02:25]}  Ne7 {[%clk 0:02:30]} 14. Ne5 {[%clk 0:02:19]}  Ng6 {[%clk 0:02:28]} 15. f4 {[%clk 0:02:08]}  c6 {[%clk 0:02:24]} 16. Qb3 {[%clk 0:02:04]}  Rab8 {[%clk 0:02:12]} 17. c4 {[%clk 0:02:01]}  Be4 {[%clk 0:01:28]} 18. cxd5 {[%clk 0:01:57]}  Bxd5 {[%clk 0:01:27]} 19. Bc4 {[%clk 0:01:57]}  Nxe5 {[%clk 0:01:19]} 20. fxe5 {[%clk 0:01:35]}  Qe6 {[%clk 0:01:10]} 21. Rfc1 {[%clk 0:01:33]}  Red8 {[%clk 0:00:48]} 22. a4 {[%clk 0:01:30]}  b6 {[%clk 0:00:41]} 23. Bxd5 {[%clk 0:01:30]}  Qxd5 {[%clk 0:00:39]} 24. Qxd5 {[%clk 0:01:29]}  cxd5 {[%clk 0:00:40]} 25. Rc7 {[%clk 0:01:29]}  a6 {[%clk 0:00:38]} 26. Rf1 {[%clk 0:01:22]}  Rf8 {[%clk 0:00:34]} 27. Rb1 {[%clk 0:01:14]}  b5 {[%clk 0:00:33]} 28. a5 {[%clk 0:01:11]}  b4 {[%clk 0:00:31]} 29. Rb3 {[%clk 0:01:08]}  Rb5 {[%clk 0:00:30]} 30. h4 {[%clk 0:01:00]}  Rxa5 {[%clk 0:00:29]} 31. Rxb4 {[%clk 0:01:00]}  Ra2 {[%clk 0:00:28]} 32. Rbb7 {[%clk 0:00:59]}  a5 {[%clk 0:00:22]} 33. e6 {[%clk 0:00:58]}  a4 {[%clk 0:00:19]} 34. Rd7 {[%clk 0:00:46]}  a3 {[%clk 0:00:18]} 35. e7 {[%clk 0:00:45]}  Ra1+ {[%clk 0:00:15]} 36. Kh2 {[%clk 0:00:44]}  a2 {[%clk 0:00:09]} 37. exf8=Q+ {[%clk 0:00:43]}  Kxf8 {[%clk 0:00:10]} 38. Rd8# {[%clk 0:00:43]} 1-0


[Site "https://www.chess.com"]

[Event "Titled Tuesday Blitz May 30 Late 2023"]
[White "MariusBieliauskas"]
[Black "K2JW"]
[WhiteElo "2462"]
[BlackElo "2369"]
[Result "1-0"]
[Round "05"]
[TimeControl "180+2"]
[Date "2023.05.31"]
[WhiteClock "0:01:52"]
[BlackClock "0:00:19"]

1. d4 {[%clk 0:03:00]}  d5 {[%clk 0:02:59]} 2. c4 {[%clk 0:02:59]}  e6 {[%clk 0:02:59]} 3. Nf3 {[%clk 0:03:00]}  Nf6 {[%clk 0:03:00]} 4. g3 {[%clk 0:03:00]}  Be7 {[%clk 0:03:00]} 5. Bg2 {[%clk 0:03:00]}  O-O {[%clk 0:03:00]} 6. Nc3 {[%clk 0:03:00]}  c6 {[%clk 0:03:01]} 7. Nd2 {[%clk 0:02:58]}  b6 {[%clk 0:02:26]} 8. O-O {[%clk 0:02:55]}  Ba6 {[%clk 0:02:23]} 9. b3 {[%clk 0:02:53]}  Nbd7 {[%clk 0:02:08]} 10. e4 {[%clk 0:02:53]}  dxc4 {[%clk 0:02:03]} 11. Nxc4 {[%clk 0:02:53]}  b5 {[%clk 0:01:58]} 12. Ne3 {[%clk 0:02:52]}  b4 {[%clk 0:01:31]} 13. Ne2 {[%clk 0:02:51]}  e5 {[%clk 0:01:26]} 14. Re1 {[%clk 0:02:25]}  Qb6 {[%clk 0:00:58]} 15. Nf5 {[%clk 0:02:20]}  Bd8 {[%clk 0:00:51]} 16. Be3 {[%clk 0:02:17]}  exd4 {[%clk 0:00:42]} 17. Nexd4 {[%clk 0:02:09]}  c5 {[%clk 0:00:41]} 18. Nf3 {[%clk 0:02:00]}  g6 {[%clk 0:00:23]} 19. Nh6+ {[%clk 0:01:54]}  Kg7 {[%clk 0:00:20]} 20. e5 {[%clk 0:01:54]}  Ne8 {[%clk 0:00:19]} 21. Qxd7 {[%clk 0:01:52]} 1-0


[Site "https://www.chess.com"]

[Event "Titled Tuesday Blitz May 30 Late 2023"]
[White "Arencibia Monduy, Antonio"]
[Black "Fernandez Siles, Luis"]
[WhiteFideId "3507939"]
[BlackFideId "2209420"]
[WhiteElo "2452"]
[BlackElo "2195"]
[Result "1-0"]
[Round "05"]
[TimeControl "180+2"]
[Date "2023.05.31"]
[WhiteClock "0:00:17"]
[BlackClock "0:00:04"]

1. e4 {[%clk 0:03:00]}  c5 {[%clk 0:02:58]} 2. Nf3 {[%clk 0:03:00]}  Nc6 {[%clk 0:02:59]} 3. c3 {[%clk 0:03:01]}  Nf6 {[%clk 0:02:58]} 4. e5 {[%clk 0:03:01]}  Nd5 {[%clk 0:02:58]} 5. d4 {[%clk 0:03:02]}  cxd4 {[%clk 0:02:59]} 6. cxd4 {[%clk 0:03:03]}  d6 {[%clk 0:02:59]} 7. Bc4 {[%clk 0:03:03]}  Nb6 {[%clk 0:02:57]} 8. Bb5 {[%clk 0:03:01]}  dxe5 {[%clk 0:02:57]} 9. Nxe5 {[%clk 0:03:02]}  Bd7 {[%clk 0:02:56]} 10. Bxc6 {[%clk 0:03:01]}  Bxc6 {[%clk 0:02:55]} 11. Nxc6 {[%clk 0:03:01]}  bxc6 {[%clk 0:02:55]} 12. O-O {[%clk 0:03:02]}  e6 {[%clk 0:02:47]} 13. Nc3 {[%clk 0:03:01]}  Be7 {[%clk 0:02:45]} 14. Qf3 {[%clk 0:02:54]}  Qxd4 {[%clk 0:02:24]} 15. Rd1 {[%clk 0:02:44]}  Qc5 {[%clk 0:01:56]} 16. Be3 {[%clk 0:02:39]}  Qc4 {[%clk 0:01:52]} 17. Rd4 {[%clk 0:02:34]}  Qa6 {[%clk 0:01:30]} 18. Qxc6+ {[%clk 0:02:34]}  Kf8 {[%clk 0:01:31]} 19. Rad1 {[%clk 0:02:21]}  Re8 {[%clk 0:01:15]} 20. Rf4 {[%clk 0:02:04]}  Qc8 {[%clk 0:01:12]} 21. Qf3 {[%clk 0:01:45]}  f6 {[%clk 0:01:04]} 22. Rfd4 {[%clk 0:01:32]}  Kf7 {[%clk 0:01:02]} 23. Qh5+ {[%clk 0:01:32]}  g6 {[%clk 0:01:02]} 24. Qa5 {[%clk 0:01:15]}  Qb7 {[%clk 0:00:55]} 25. Qb5 {[%clk 0:00:31]}  Rd8 {[%clk 0:00:52]} 26. a4 {[%clk 0:00:31]}  Qc7 {[%clk 0:00:26]} 27. a5 {[%clk 0:00:27]}  Nc8 {[%clk 0:00:18]} 28. Rd7 {[%clk 0:00:25]}  Rxd7 {[%clk 0:00:15]} 29. Rxd7 {[%clk 0:00:26]}  Qe5 {[%clk 0:00:09]} 30. Qxe5 {[%clk 0:00:26]}  fxe5 {[%clk 0:00:09]} 31. Bxa7 {[%clk 0:00:19]}  Ke8 {[%clk 0:00:04]} 32. Rb7 {[%clk 0:00:17]} 1-0


[Site "https://www.chess.com"]

[Event "Titled Tuesday Blitz May 30 Late 2023"]
[White "Botez, Alexandra"]
[Black "Harriott, Tyrell"]
[WhiteFideId "2603365"]
[BlackFideId "2086484"]
[WhiteElo "2040"]
[BlackElo "2107"]
[Result "1-0"]
[Round "05"]
[TimeControl "180+2"]
[Date "2023.05.31"]
[WhiteClock "0:00:26"]
[BlackClock "0:00:02"]

1. d4 {[%clk 0:02:50]}  d6 {[%clk 0:02:28]} 2. c4 {[%clk 0:02:41]}  Nf6 {[%clk 0:02:27]} 3. Nc3 {[%clk 0:02:40]}  Nbd7 {[%clk 0:02:26]} 4. e4 {[%clk 0:02:39]}  e5 {[%clk 0:02:25]} 5. d5 {[%clk 0:02:39]}  Be7 {[%clk 0:02:26]} 6. Rb1 {[%clk 0:02:27]}  O-O {[%clk 0:02:24]} 7. b4 {[%clk 0:02:27]}  Ne8 {[%clk 0:02:24]} 8. Bd3 {[%clk 0:02:26]}  g6 {[%clk 0:02:25]} 9. Nge2 {[%clk 0:02:20]}  f5 {[%clk 0:02:23]} 10. Bh6 {[%clk 0:02:14]}  Ng7 {[%clk 0:02:23]} 11. h4 {[%clk 0:01:57]}  Bxh4 {[%clk 0:02:15]} 12. Ng3 {[%clk 0:01:40]}  Bg5 {[%clk 0:02:05]} 13. Bxg7 {[%clk 0:01:38]}  Kxg7 {[%clk 0:02:03]} 14. exf5 {[%clk 0:01:32]}  Nf6 {[%clk 0:01:48]} 15. fxg6 {[%clk 0:01:31]}  hxg6 {[%clk 0:01:47]} 16. Qc2 {[%clk 0:01:28]}  e4 {[%clk 0:01:44]} 17. Ncxe4 {[%clk 0:01:28]}  Qe7 {[%clk 0:01:42]} 18. Kd1 {[%clk 0:01:21]}  Nxe4 {[%clk 0:01:39]} 19. Nxe4 {[%clk 0:01:18]}  Bh6 {[%clk 0:01:31]} 20. Qc3+ {[%clk 0:01:16]}  Qe5 {[%clk 0:01:30]} 21. Qxe5+ {[%clk 0:01:16]}  dxe5 {[%clk 0:01:30]} 22. f3 {[%clk 0:01:17]}  Bf5 {[%clk 0:01:28]} 23. Ke2 {[%clk 0:01:17]}  Bf4 {[%clk 0:01:27]} 24. Nc5 {[%clk 0:01:17]}  Bc8 {[%clk 0:00:54]} 25. Be4 {[%clk 0:01:07]}  b6 {[%clk 0:00:53]} 26. Nd3 {[%clk 0:01:07]}  Bg3 {[%clk 0:00:50]} 27. d6 {[%clk 0:01:02]}  c6 {[%clk 0:00:41]} 28. Bxc6 {[%clk 0:01:01]}  Rb8 {[%clk 0:00:40]} 29. d7 {[%clk 0:00:55]}  Bb7 {[%clk 0:00:40]} 30. b5 {[%clk 0:00:55]}  Ba8 {[%clk 0:00:38]} 31. Rh3 {[%clk 0:00:54]}  Bf4 {[%clk 0:00:33]} 32. Rbh1 {[%clk 0:00:53]}  Bg5 {[%clk 0:00:17]} 33. Rh7+ {[%clk 0:00:52]}  Kf6 {[%clk 0:00:17]} 34. Nb4 {[%clk 0:00:50]}  Ke6 {[%clk 0:00:16]} 35. Rg7 {[%clk 0:00:42]}  Kf6 {[%clk 0:00:14]} 36. Rhh7 {[%clk 0:00:41]}  e4 {[%clk 0:00:11]} 37. fxe4 {[%clk 0:00:37]}  Rbd8 {[%clk 0:00:08]} 38. Nd5+ {[%clk 0:00:29]}  Ke5 {[%clk 0:00:08]} 39. Rxg6 {[%clk 0:00:29]}  Bf4 {[%clk 0:00:02]} 40. Kd3 {[%clk 0:00:26]} 1-0


[Site "https://www.chess.com"]

[Event "Titled Tuesday Blitz May 30 Late 2023"]
[White "Najer, Evgeniy"]
[Black "Torres Dominguez, David"]
[WhiteFideId "4118987"]
[BlackFideId "2220857"]
[WhiteElo "2545"]
[BlackElo "1999"]
[Result "1-0"]
[Round "05"]
[TimeControl "180+2"]
[Date "2023.05.31"]
[WhiteClock "0:00:01"]
[BlackClock "0:00:04"]

1. d4 {[%clk 0:02:51]}  e5 {[%clk 0:02:56]} 2. dxe5 {[%clk 0:02:50]}  d6 {[%clk 0:02:55]} 3. Nf3 {[%clk 0:02:47]}  Bg4 {[%clk 0:02:54]} 4. Nc3 {[%clk 0:02:43]}  Nc6 {[%clk 0:02:53]} 5. Bg5 {[%clk 0:02:36]}  Qd7 {[%clk 0:02:52]} 6. exd6 {[%clk 0:02:22]}  Bxd6 {[%clk 0:02:52]} 7. e3 {[%clk 0:02:23]}  f6 {[%clk 0:02:44]} 8. Bh4 {[%clk 0:02:07]}  O-O-O {[%clk 0:02:43]} 9. Be2 {[%clk 0:02:05]}  Nh6 {[%clk 0:02:35]} 10. Bg3 {[%clk 0:02:04]}  Qe6 {[%clk 0:02:31]} 11. Bxd6 {[%clk 0:02:03]}  Rxd6 {[%clk 0:02:30]} 12. Qc1 {[%clk 0:01:55]}  Rhd8 {[%clk 0:02:30]} 13. O-O {[%clk 0:01:51]}  g5 {[%clk 0:02:20]} 14. Re1 {[%clk 0:01:39]}  f5 {[%clk 0:01:51]} 15. Nd4 {[%clk 0:01:29]}  Nxd4 {[%clk 0:01:46]} 16. exd4 {[%clk 0:01:28]}  f4 {[%clk 0:01:40]} 17. d5 {[%clk 0:01:08]}  Qg6 {[%clk 0:01:38]} 18. Bd3 {[%clk 0:00:54]}  Bf5 {[%clk 0:01:34]} 19. Qd2 {[%clk 0:00:48]}  Qf6 {[%clk 0:01:34]} 20. Ne4 {[%clk 0:00:46]}  Bxe4 {[%clk 0:01:28]} 21. Bxe4 {[%clk 0:00:46]}  g4 {[%clk 0:01:25]} 22. c4 {[%clk 0:00:44]}  g3 {[%clk 0:01:11]} 23. fxg3 {[%clk 0:00:42]}  fxg3 {[%clk 0:01:10]} 24. h3 {[%clk 0:00:39]}  R6d7 {[%clk 0:01:02]} 25. Rf1 {[%clk 0:00:39]}  Qg7 {[%clk 0:00:57]} 26. Rae1 {[%clk 0:00:30]}  Kb8 {[%clk 0:00:54]} 27. c5 {[%clk 0:00:22]}  Re7 {[%clk 0:00:50]} 28. Qb4 {[%clk 0:00:15]}  a5 {[%clk 0:00:45]} 29. Qd2 {[%clk 0:00:06]}  Nf7 {[%clk 0:00:32]} 30. d6 {[%clk 0:00:05]}  cxd6 {[%clk 0:00:27]} 31. c6 {[%clk 0:00:05]}  Rde8 {[%clk 0:00:20]} 32. Bf3 {[%clk 0:00:03]}  Rxe1 {[%clk 0:00:13]} 33. Rxe1 {[%clk 0:00:03]}  Qd4+ {[%clk 0:00:08]} 34. Kf1 {[%clk 0:00:02]}  Qxd2 {[%clk 0:00:06]} 35. Rxe8+ {[%clk 0:00:02]}  Kc7 {[%clk 0:00:06]} 36. Re7+ {[%clk 0:00:03]}  Kb6 {[%clk 0:00:07]} 37. Rxb7+ {[%clk 0:00:02]}  Ka6 {[%clk 0:00:04]} 38. Be2+ {[%clk 0:00:01]} 1-0


[Site "https://www.chess.com"]